fUSD/lending_fUSD_20260227
["ID","MTS","AMOUNT","RATE_DAILY","PERIOD"]
[406842923,1772224252379,-151.0,0.00041096,2]
[406842924,1772224252388,-151.0,0.00041096,120]
[406842925,1772224252397,-151.0,0.00041096,2]
[406842926,1772224252406,-151.0,0.00041096,120]
[406842927,1772224252415,-151.0,0.00041096,2]
[406842928,1772224252425,-151.0,0.00041096,120]
[406842929,1772224252434,-151.0,0.00041096,2]
[406842930,1772224252443,-151.0,0.00041096,2]
[406842931,1772224252452,-151.0,0.00041096,120]
[406842932,1772224252462,-151.0,0.00041096,2]
[406842933,1772224252471,-151.0,0.00041096,120]
[406842934,1772224252480,-259.0,0.00041096,2]
[406842935,1772224252489,-151.0,0.00041096,120]
[406842936,1772224252498,-151.0,0.00041096,120]
[406842937,1772224252507,-151.0,0.00041096,120]
[406842938,1772224252516,-151.0,0.00041096,120]
[406842939,1772224252526,-151.0,0.00041096,120]
[406842940,1772224252535,-151.0,0.00041096,120]
[406842941,1772224252544,-293.960054,0.00041096,120]
[406842942,1772224252553,-151.0,0.00041096,120]
[406842943,1772224252562,-151.0,0.00041096,120]
[406842944,1772224252571,-151.0,0.00041096,120]
[406842945,1772224252580,-185.234928,0.00041096,120]
[406842946,1772224252590,-151.0,0.00041096,120]
[406842947,1772224252599,-151.0,0.00041096,120]
[406842948,1772224252607,-151.0,0.00041096,120]
[406842949,1772224252617,-222.766668,0.00041096,120]
[406842950,1772224252626,-151.0,0.00041096,120]
[406842951,1772224252635,-151.0,0.00041096,120]
[406842952,1772224252644,-151.0,0.00041096,120]
[406842953,1772224252653,-151.0,0.00041096,120]
[406842954,1772224252662,-151.0,0.00041096,120]
[406842955,1772224252671,-151.0,0.00041096,120]
[406842956,1772224252680,-151.0,0.00041096,120]
[406842957,1772224252688,-151.0,0.00041096,120]
[406842958,1772224252698,-151.0,0.00041096,120]
[406842959,1772224252707,-151.0,0.00041096,120]
[406842960,1772224252716,-151.0,0.00041096,120]
[406842961,1772224252725,-151.0,0.00041096,120]
[406842962,1772224252734,-151.0,0.00041096,120]
[406842963,1772224252743,-151.0,0.00041096,120]
[406842964,1772224252751,-151.0,0.00041096,120]
[406842965,1772224252760,-151.0,0.00041096,120]
[406842966,1772224252769,-151.0,0.00041096,120]
[406842967,1772224252779,-195.099116,0.00041096,120]
[406842968,1772224252788,-151.0,0.00041096,120]
[406842969,1772224252797,-151.0,0.00041096,120]
[406842970,1772224252807,-151.0,0.00041096,120]
[406842971,1772224252816,-151.0,0.00041096,120]
[406842972,1772224252825,-151.0,0.00041096,120]
[406842973,1772224252835,-151.0,0.00041096,120]
[406842974,1772224252844,-151.0,0.00041096,120]
[406842975,1772224252853,-151.0,0.00041096,120]
[406842976,1772224252862,-151.0,0.00041096,120]
[406842977,1772224252871,-151.0,0.00041096,120]
[406842978,1772224252881,-151.0,0.00041096,120]
[406842979,1772224252892,-151.0,0.00041096,120]
[406842980,1772224252901,-151.0,0.00041096,120]
[406842981,1772224252911,-151.0,0.00041096,120]
[406842982,1772224252920,-151.0,0.00041096,120]
[406842983,1772224252929,-199.623976,0.00041096,120]
[406842984,1772224252940,-151.0,0.00041096,120]
[406842985,1772224252950,-151.0,0.00041096,120]
[406842986,1772224252960,-151.0,0.00041096,120]
[406842987,1772224252971,-151.0,0.00041096,120]
[406842988,1772224252981,-151.0,0.00041096,120]
[406842989,1772224252991,-213.163862,0.00041096,120]
[406842990,1772224253002,-606.351968,0.00041096,15]
[406842991,1772224253011,-606.351968,0.00041096,15]
[406842992,1772224253021,-606.351968,0.00041096,15]
[406842993,1772224253030,-606.351968,0.00041096,15]
[406842994,1772224253039,-606.351968,0.00041096,15]
[406842995,1772224253048,-606.351968,0.00041096,15]
[406842996,1772224253057,-606.351968,0.00041096,15]
[406842997,1772224253067,-606.351968,0.00041096,15]
[406842998,1772224253076,-606.351968,0.00041096,15]
[406842999,1772224253086,-164.286029,0.00041096,120]
[406843000,1772224253095,-606.351968,0.00041096,15]
[406843001,1772224253104,-606.351968,0.00041096,15]
[406843002,1772224253115,-606.351968,0.00041096,15]
[406843003,1772224253124,-606.351968,0.00041096,15]
[406843004,1772224253134,-606.351968,0.00041096,15]
[406843005,1772224253143,-606.351968,0.00041096,15]
[406843006,1772224253152,-606.351968,0.00041096,15]
[406843007,1772224253163,-606.351968,0.00041096,15]
[406843008,1772224253171,-606.351968,0.00041096,15]
[406843009,1772224253181,-606.351968,0.00041096,15]
[406843010,1772224253192,-606.351972,0.00041096,15]
[406843011,1772224253201,-151.0,0.00041096,120]
[406843012,1772224253210,-272.620835,0.00041096,120]
[406843013,1772224253219,-151.0,0.00041096,120]
[406843014,1772224253228,-151.0,0.00041096,120]
[406843015,1772224253237,-151.0,0.00041096,120]
[406843016,1772224253246,-151.0,0.00041096,120]
[406843017,1772224253255,-151.0,0.00041096,120]
[406843018,1772224253265,-151.0,0.00041096,120]
[406843019,1772224253274,-151.0,0.00041096,120]
[406843020,1772224253283,-151.0,0.00041096,120]
[406843021,1772224253292,-151.0,0.00041096,120]
[406843022,1772224253302,-151.0,0.00041096,120]
[406843023,1772224253311,-151.0,0.00041096,120]
[406843024,1772224253319,-151.0,0.00041096,120]
[406843025,1772224253329,-151.0,0.00041096,30]
[406843026,1772224253338,-151.0,0.00041096,30]
[406843027,1772224253348,-151.0,0.00041096,30]
[406843028,1772224253356,-151.0,0.00041096,30]
[406843029,1772224253366,-151.0,0.00041096,30]
[406843030,1772224253375,-201.36154,0.00041096,30]
[406843031,1772224253385,-167.077756,0.00041096,120]
[406843032,1772224253395,-167.077756,0.00041096,120]
[406843033,1772224253404,-167.077756,0.00041096,120]
[406843034,1772224253413,-167.077756,0.00041096,120]
[406843035,1772224253423,-167.077756,0.00041096,120]
[406843036,1772224253432,-167.077756,0.00041096,120]
[406843037,1772224253441,-167.077756,0.00041096,120]
[406843038,1772224253451,-167.077756,0.00041096,120]
[406843039,1772224253460,-167.077756,0.00041096,120]
[406843040,1772224253469,-167.077756,0.00041096,120]
[406843041,1772224253478,-167.077756,0.00041096,120]
[406843042,1772224253487,-167.077756,0.00041096,120]
[406843043,1772224253497,-167.077756,0.00041096,120]
[406843044,1772224253506,-167.077756,0.00041096,120]
[406843045,1772224253517,-167.077756,0.00041096,120]
[406843046,1772224253527,-167.077756,0.00041096,120]
[406843047,1772224253537,-167.077756,0.00041096,120]
[406843048,1772224253547,-167.077756,0.00041096,120]
[406843049,1772224253555,-167.077756,0.00041096,120]
[406843050,1772224253565,-167.077762,0.00041096,120]
[406843051,1772224253574,-151.0,0.00041096,120]
[406843052,1772224253584,-151.0,0.00041096,120]
[406843053,1772224253592,-151.0,0.00041096,120]
[406843054,1772224253602,-151.0,0.00041096,120]
[406843055,1772224253610,-151.0,0.00041096,120]
[406843056,1772224253620,-151.0,0.00041096,120]
[406843057,1772224253628,-151.0,0.00041096,120]
[406843058,1772224253638,-151.0,0.00041096,120]
[406843059,1772224253647,-151.0,0.00041096,120]
[406843060,1772224253656,-151.0,0.00041096,120]
[406843061,1772224253667,-151.0,0.00041096,120]
[406843062,1772224253791,-151.0,0.00041096,120]
[406843063,1772224253801,-151.0,0.00041096,120]
[406843064,1772224253811,-151.0,0.00041096,120]
[406843065,1772224253820,-151.0,0.00041096,120]
[406843066,1772224253830,-151.0,0.00041096,120]
[406843067,1772224253838,-151.0,0.00041096,120]
[406843068,1772224253848,-151.0,0.00041096,120]
[406843069,1772224253856,-151.0,0.00041096,120]
[406843070,1772224253865,-151.0,0.00041096,120]
[406843071,1772224253874,-151.0,0.00041096,120]
[406843072,1772224253884,-151.0,0.00041096,120]
[406843073,1772224253894,-151.0,0.00041096,120]
[406843074,1772224253903,-151.0,0.00041096,120]
[406843075,1772224253912,-151.0,0.00041096,120]
[406843076,1772224253921,-269.06416,0.00041096,120]
[406843077,1772224253931,-207.071698,0.00041096,14]
[406843078,1772224253939,-207.071698,0.00041096,14]
[406843079,1772224253948,-207.071698,0.00041096,14]
[406843080,1772224253958,-207.071698,0.00041096,14]
[406843081,1772224253967,-207.071698,0.00041096,14]
[406843082,1772224253976,-207.071698,0.00041096,14]
[406843083,1772224253985,-207.071698,0.00041096,14]
[406843084,1772224253995,-207.071698,0.00041096,14]
[406843085,1772224254003,-207.071698,0.00041096,14]
[406843086,1772224254012,-207.071698,0.00041096,14]
[406843087,1772224254022,-207.071698,0.00041096,14]
[406843088,1772224254031,-207.071698,0.00041096,14]
[406843089,1772224254040,-207.071698,0.00041096,14]
[406843090,1772224254050,-207.071698,0.00041096,14]
[406843091,1772224254059,-207.071698,0.00041096,14]
[406843092,1772224254068,-207.071698,0.00041096,14]
[406843093,1772224254078,-207.071698,0.00041096,14]
[406843094,1772224254087,-207.071698,0.00041096,14]
[406843095,1772224254096,-207.071698,0.00041096,14]
[406843096,1772224254105,-207.07169,0.00041096,14]
[406843097,1772224254116,-151.0,0.00041096,120]
[406843098,1772224254126,-195.632997,0.00041096,120]
[406843099,1772224254135,-151.0,0.00041096,120]
[406843100,1772224254144,-151.0,0.00041096,120]
[406843101,1772224254153,-151.0,0.00041096,120]
[406843102,1772224254162,-151.0,0.00041096,120]
[406843103,1772224254172,-208.15144,0.00041096,120]
[406843104,1772224254182,-208.15144,0.00041096,120]
[406843105,1772224254194,-208.15144,0.00041096,120]
[406843106,1772224254203,-208.15144,0.00041096,120]
[406843107,1772224254212,-208.15144,0.00041096,120]
[406843108,1772224254221,-208.15144,0.00041096,120]
[406843109,1772224254230,-208.15144,0.00041096,120]
[406843110,1772224254239,-208.15144,0.00041096,120]
[406843111,1772224254249,-208.15144,0.00041096,120]
[406843112,1772224254259,-208.15144,0.00041096,120]
[406843113,1772224254268,-208.15144,0.00041096,120]
[406843114,1772224254277,-208.15144,0.00041096,120]
[406843115,1772224254286,-208.15144,0.00041096,120]
[406843116,1772224254296,-208.15144,0.00041096,120]
[406843117,1772224254305,-151.0,0.00041096,90]
[406843118,1772224254314,-208.15144,0.00041096,120]
[406843119,1772224254323,-208.15144,0.00041096,120]
[406843120,1772224254333,-151.0,0.00041096,90]
[406843121,1772224254342,-208.15144,0.00041096,120]
[406843122,1772224254351,-208.15144,0.00041096,120]
[406843123,1772224254360,-208.15144,0.00041096,120]
[406843124,1772224254369,-208.15144,0.00041096,120]
[406843125,1772224254378,-151.0,0.00041096,120]
[406843126,1772224254387,-151.0,0.00041096,120]
[406843127,1772224254395,-151.0,0.00041096,120]
[406843128,1772224254404,-151.0,0.00041096,120]
[406843129,1772224254413,-151.0,0.00041096,120]
[406843130,1772224254422,-151.0,0.00041096,120]
[406843131,1772224254431,-157.554015,0.00041096,120]
[406843132,1772224254440,-151.0,0.00041096,120]
[406843133,1772224254449,-151.0,0.00041096,120]
[406843134,1772224254457,-151.0,0.00041096,120]
[406843135,1772224254466,-151.0,0.00041096,120]
[406843136,1772224254476,-191.339552,0.00041096,120]
[406843137,1772224254484,-151.0,0.00041096,120]
[406843138,1772224254493,-151.0,0.00041096,120]
[406843139,1772224254503,-151.0,0.00041096,120]
[406843140,1772224254511,-151.0,0.00041096,120]
[406843141,1772224254520,-238.02086,0.00041096,120]
[406843142,1772224254529,-189.759437,0.00041096,120]
[406843143,1772224254538,-151.0,0.00041096,120]
[406843144,1772224254546,-189.759437,0.00041096,120]
[406843145,1772224254555,-151.0,0.00041096,120]
[406843146,1772224254564,-189.759437,0.00041096,120]
[406843147,1772224254573,-151.0,0.00041096,120]
[406843148,1772224254582,-189.759437,0.00041096,120]
[406843149,1772224254591,-151.0,0.00041096,120]
[406843150,1772224254600,-189.759437,0.00041096,120]
[406843151,1772224254608,-189.759437,0.00041096,120]
[406843152,1772224254617,-189.759437,0.00041096,120]
[406843153,1772224254626,-189.759437,0.00041096,120]
[406843154,1772224254635,-189.759437,0.00041096,120]
[406843155,1772224254644,-189.759437,0.00041096,120]
[406843156,1772224254653,-189.759437,0.00041096,120]
[406843157,1772224254662,-189.759437,0.00041096,120]
[406843158,1772224254671,-189.759437,0.00041096,120]
[406843159,1772224254680,-189.759437,0.00041096,120]
[406843160,1772224254689,-189.759437,0.00041096,120]
[406843161,1772224254698,-189.759437,0.00041096,120]
[406843162,1772224254707,-150.0,0.000415,120]
[406843163,1772224254716,-500.0,0.00041532,120]
[406843164,1772224254725,-856.45675791,0.00041643,2]
[406843165,1772224254734,-306.29679311,0.00041643,2]
[406843166,1772224254742,-852.28136836,0.00041643,2]
[406843167,1772224254751,-307.55492962,0.00041643,2]
[406843168,1772224254759,-300.0,0.00041643,2]
[406843169,1772224254769,-459.19979016,0.00041643,2]
[406843170,1772224254778,-371.72919772,0.00041643,2]
[406843171,1772224254787,-300.0,0.00041643,2]
[406843172,1772224254796,-519.04834756,0.00041643,2]
[406843173,1772224254805,-306.51036434,0.00041643,2]
[406843174,1772224254814,-300.0,0.00041643,2]
[406843175,1772224254822,-1083.06069021,0.00041643,2]
[406843176,1772224254832,-856.45675791,0.00041643,2]
[406843177,1772224254840,-306.29679311,0.00041643,2]
[406843178,1772224254849,-852.28136836,0.00041643,2]
[406843179,1772224254859,-307.55492962,0.00041643,2]
[406843180,1772224254868,-300.0,0.00041643,2]
[406843181,1772224254876,-459.19979016,0.00041643,2]
[406843182,1772224254886,-371.72919772,0.00041643,2]
[406843183,1772224254895,-300.0,0.00041643,2]
[406843184,1772224254904,-519.04834756,0.00041643,2]
[406843185,1772224254914,-306.51036434,0.00041643,2]
[406843186,1772224254923,-300.0,0.00041643,2]
[406843187,1772224254933,-1083.06069021,0.00041643,2]
[406843188,1772224254942,-856.45675791,0.00041643,2]
[406843189,1772224254951,-306.29679311,0.00041643,2]
[406843190,1772224254961,-852.28136836,0.00041643,2]
[406843191,1772224254970,-307.35370096,0.00041643,2]
[406843192,1772224254979,-300.0,0.00041643,2]
[406843193,1772224254988,-371.48597979,0.00041643,2]
[406843194,1772224254997,-300.0,0.00041643,2]
[406843195,1772224255007,-519.04834756,0.00041643,2]
[406843196,1772224255016,-306.51036434,0.00041643,2]
[406843197,1772224255025,-856.45675791,0.00041643,2]
[406843198,1772224255034,-306.0822986,0.00041643,2]
[406843199,1772224255044,-378.70215,0.00041643,2]
[406843200,1772224255053,-300.0,0.00041643,2]
[406843201,1772224255062,-300.0,0.00041643,2]
[406843202,1772224255072,-518.52964966,0.00041643,2]
[406843203,1772224255081,-306.30623314,0.00041643,2]
[406843204,1772224255091,-796.90442167,0.00041643,2]
[406843205,1772224255100,-300.0,0.00041643,2]
[406843206,1772224255110,-300.0,0.00041643,2]
[406843207,1772224255123,-300.0,0.00041643,2]
[406843208,1772224255133,-300.0,0.00041643,2]
[406843209,1772224255143,-300.0,0.00041643,2]
[406843210,1772224255152,-300.0,0.00041643,2]
[406843211,1772224255164,-300.0,0.00041643,2]
[406843212,1772224255173,-300.0,0.00041643,2]
[406843213,1772224255183,-844.0,0.00041644,120]
[406843214,1772224255194,-484.21494722,0.0004168,2]
[406843215,1772224255204,-300.0,0.0004168,2]
[406843216,1772224255212,-300.0,0.0004168,2]
[406843217,1772224255221,-231.3,0.0004172,30]
[406843218,1772224255231,-1040.2,0.00041787,30]
[406843219,1772224255240,-500.0,0.00041999,45]
[406843220,1772224255250,-130414.58246572,0.00042,120]
[406843221,1772224255259,-6960.42972062,0.00042,120]
[406843222,1772224255269,-3000.0,0.00042,30]
[406843223,1772224255278,-534.0,0.00042,30]
[406843224,1772224255288,-500.0,0.00042126,120]
[406843225,1772224255297,-150.0,0.00042173,120]
[406843226,1772224255307,-844.0,0.00042192,120]
[406843227,1772224255316,-153.0,0.000422,120]
[406843228,1772224255325,-5800.0,0.00042211,14]
[406843229,1772224255334,-5800.0,0.00042219,14]
[406843230,1772224255344,-537.0,0.00042288,90]
[406843231,1772224255353,-372.15012581,0.00042464,5]
[406843232,1772224255363,-150.37,0.00042466,120]
[406843233,1772224255372,-500.0,0.00042466,120]
[406843234,1772224255382,-500.0,0.00042521,120]
[406843235,1772224255391,-500.0,0.00042576,120]
[406843236,1772224255400,-164329.0,0.00042594,60]
[406843237,1772224255410,-1040.2,0.00042614,30]
[406843238,1772224255419,-500.0,0.0004263,120]
[406843239,1772224255428,-548.24027843,0.00042685,120]
[406843240,1772224255438,-844.0,0.0004274,120]
[406843241,1772224255447,-4000.0,0.0004274,14]
[406843242,1772224255456,-814.53881766,0.00042874,2]
[406843243,1772224255465,-32027.51783631,0.0004288,60]
[406843244,1772224255474,-700.0,0.000429,15]
[406843245,1772224255483,-43301.85893216,0.00042999,120]
[406843246,1772224255492,-200.0,0.00043068,120]
[406843247,1772224255503,-200.0,0.00043068,120]
[406843248,1772224255512,-4023.11668491,0.000431,120]
[406843249,1772224255522,-1426.99,0.00043113,120]
[406843250,1772224255531,-849.15,0.000432,14]
[406843251,1772224255540,-510.76,0.0004328,120]
[406843252,1772224255548,-500.0,0.0004328,120]
[406843253,1772224255557,-500.0,0.0004328,120]
[406843254,1772224255566,-107342.36609834,0.00043281,7]
[406843255,1772224255575,-844.0,0.00043288,120]
[406843256,1772224255584,-500.0,0.00043288,120]
[406843257,1772224255593,-845.0,0.00043318,16]
[406843258,1772224255602,-500.0,0.00043343,120]
[406843259,1772224255613,-1426.99,0.00043387,120]
[406843260,1772224255623,-500.0,0.00043398,120]
[406843261,1772224255632,-1040.2,0.0004344,30]
[406843262,1772224255642,-500.0,0.00043452,120]
[406843263,1772224255653,-500.0,0.00043507,120]
[406843264,1772224255663,-500.0,0.00043515,120]
[406843265,1772224255673,-523.71,0.00043613,7]
[406843266,1772224255683,-800.0,0.0004379,120]
[406843267,1772224255692,-777.21,0.000438,14]
[406843268,1772224255702,-727.7,0.000438,14]
[406843269,1772224255711,-916.92,0.000438,30]
[406843270,1772224255721,-2000.0,0.000438,2]
[406843271,1772224255730,-844.0,0.00043836,120]
[406843272,1772224255740,-444.831966,0.00043836,120]
[406843273,1772224255749,-444.831966,0.00043836,120]
[406843274,1772224255758,-444.831966,0.00043836,120]
[406843275,1772224255767,-444.831966,0.00043836,120]
[406843276,1772224255777,-444.831966,0.00043836,120]
[406843277,1772224255786,-444.831966,0.00043836,120]
[406843278,1772224255795,-444.831966,0.00043836,120]
[406843279,1772224255804,-444.831966,0.00043836,120]
[406843280,1772224255814,-444.831966,0.00043836,120]
[406843281,1772224255825,-444.831966,0.00043836,120]
[406843282,1772224255836,-444.831966,0.00043836,120]
[406843283,1772224255845,-444.831966,0.00043836,120]
[406843284,1772224255855,-444.831966,0.00043836,120]
[406843285,1772224255864,-444.831966,0.00043836,120]
[406843286,1772224255873,-444.831966,0.00043836,120]
[406843287,1772224255883,-444.831966,0.00043836,120]
[406843288,1772224255892,-444.831966,0.00043836,120]
[406843289,1772224255902,-444.831966,0.00043836,120]
[406843290,1772224255911,-20000.0,0.00043836,120]
[406843291,1772224255920,-199.45,0.0004384,120]
[406843292,1772224255931,-155.13076873,0.0004384,120]
[406843293,1772224255941,-164329.0,0.00043998,60]
[406843294,1772224255951,-445.25,0.00044232,30]
[406843295,1772224255960,-1040.2,0.00044267,120]
[406843296,1772224255970,-849.15,0.000443,14]
[406843297,1772224255981,-510.76,0.00044301,120]
[406843298,1772224255991,-500.0,0.00044301,120]
[406843299,1772224256001,-844.0,0.00044384,120]
[406843300,1772224256012,-153.0,0.000444,120]
[406843301,1772224256022,-160.0,0.00044413,16]
[406843302,1772224256032,-7690.69188428,0.00044498,31]
[406843303,1772224256043,-500.0,0.000445,120]
[406843304,1772224256051,-390.0,0.000446,10]
[406843305,1772224256063,-187.0,0.000447,16]
[406843306,1772224256072,-843.0,0.000447,16]
[406843307,1772224256083,-777.21,0.000448,14]
[406843308,1772224256093,-231.3,0.0004488,120]
[406843309,1772224256102,-510.76,0.00044903,120]
[406843310,1772224256112,-500.0,0.00044903,120]
[406843311,1772224256125,-844.0,0.00044932,120]
[406843312,1772224256134,-445.25,0.00044969,30]
[406843313,1772224256144,-1078.36665033,0.00044981,60]
[406843314,1772224256153,-1000.0,0.00044999,120]
[406843315,1772224256163,-1000.0,0.00044999,120]
[406843316,1772224256172,-1000.0,0.00044999,120]
[406843317,1772224256181,-1000.0,0.00044999,120]
[406843318,1772224256193,-1000.0,0.00044999,120]
[406843319,1772224256314,-1000.0,0.00044999,120]
[406843320,1772224256323,-1000.0,0.00044999,120]
[406843321,1772224256333,-1000.0,0.00044999,120]
[406843322,1772224256342,-1000.0,0.00044999,120]
[406843323,1772224256351,-1000.0,0.00044999,120]
[406843324,1772224256360,-1000.0,0.00044999,120]
[406843325,1772224256369,-1000.0,0.00044999,120]
[406843326,1772224256378,-1000.0,0.00044999,120]
[406843327,1772224256387,-1845.61634435,0.00044999,120]
[406843328,1772224256396,-510.76,0.00044999,120]
[406843329,1772224256405,-500.0,0.00044999,120]
[406843330,1772224256414,-1000.0,0.00045,120]
[406843331,1772224256423,-221787.3890729,0.00045,120]
[406843332,1772224256432,-6545.3724364,0.00045,120]
[406843333,1772224256441,-163.00592101,0.00045,10]
[406843334,1772224256451,-160.84173393,0.00045,14]
[406843335,1772224256461,-160.8,0.00045,85]
[406843336,1772224256470,-727.7,0.00045,14]
[406843337,1772224256479,-916.92,0.00045,30]
[406843338,1772224256489,-993.31,0.00045,120]
[406843339,1772224256499,-1048.82,0.00045,120]
[406843340,1772224256508,-376.97,0.00045,120]
[406843341,1772224256518,-570.11,0.00045,120]
[406843342,1772224256527,-1097.89,0.00045,120]
[406843343,1772224256536,-2932.8,0.00045,120]
[406843344,1772224256545,-2432.1,0.00045,120]
[406843345,1772224256555,-2475.25,0.00045,120]
[406843346,1772224256564,-792.55,0.00045,120]
[406843347,1772224256574,-1783.01,0.00045,120]
[406843348,1772224256583,-727.97,0.00045,120]
[406843349,1772224256592,-2089.64,0.00045,120]
[406843350,1772224256602,-1381.79,0.00045,120]
[406843351,1772224256611,-198.0,0.00045,120]
[406843352,1772224256620,-1000.0,0.00045,120]
[406843353,1772224256629,-1000.0,0.00045,120]
[406843354,1772224256638,-1000.0,0.00045,120]
[406843355,1772224256647,-1000.0,0.00045,120]
[406843356,1772224256656,-1000.0,0.00045,120]
[406843357,1772224256666,-1000.0,0.00045,120]
[406843358,1772224256675,-1000.0,0.00045,120]
[406843359,1772224256684,-1000.0,0.00045,120]
[406843360,1772224256693,-1000.0,0.00045,120]
[406843361,1772224256702,-1000.0,0.00045,120]
[406843362,1772224256711,-1000.0,0.00045,120]
[406843363,1772224256721,-1000.0,0.00045,120]
[406843364,1772224256729,-1000.0,0.00045,120]
[406843365,1772224256739,-1845.61634435,0.00045,120]
[406843366,1772224256748,-25000.0,0.00045061,15]
[406843367,1772224256757,-1917.92108292,0.0004507,120]
[406843368,1772224256767,-25000.0,0.0004507,15]
[406843369,1772224256776,-25000.0,0.0004507,15]
[406843370,1772224256785,-647.78,0.00045086,120]
[406843371,1772224256794,-647.78,0.00045086,120]
[406843372,1772224256803,-647.78,0.00045086,120]
[406843373,1772224256813,-647.78,0.00045086,120]
[406843374,1772224256822,-648.00858849,0.00045086,120]
[406843375,1772224256831,-500.0,0.00045086,120]
[406843376,1772224256840,-500.0,0.00045086,120]
[406843377,1772224256849,-553.51280634,0.00045086,120]
[406843378,1772224256859,-1040.2,0.00045094,120]
[406843379,1772224256868,-533.0,0.00045107,90]
[406843380,1772224256877,-2285.94,0.00045205,120]
[406843381,1772224256886,-330.02,0.00045341,120]
[406843382,1772224256895,-2622.62485657,0.00045342,120]
[406843383,1772224256905,-1714.5594,0.00045357,2]
[406843384,1772224256914,-800.0,0.00045376,17]
[406843385,1772224256923,-800.0,0.00045376,17]
[406843386,1772224256932,-800.0,0.00045376,17]
[406843387,1772224256941,-800.0,0.00045376,17]
[406843388,1772224256950,-800.0,0.00045376,17]
[406843389,1772224256959,-800.0,0.00045376,17]
[406843390,1772224256971,-800.0,0.00045376,17]
[406843391,1772224256980,-800.0,0.00045376,17]
[406843392,1772224256989,-800.0,0.00045376,33]
[406843393,1772224256998,-164329.0,0.00045402,60]
[406843394,1772224257008,-844.0,0.00045479,120]
[406843395,1772224257017,-155.0,0.000456,120]
[406843396,1772224257025,-445.25,0.00045707,30]
[406843397,1772224257035,-274.05553643,0.000458,120]
[406843398,1772224257044,-150.0,0.000458,120]
[406843399,1772224257052,-157.38529778,0.000458,120]
[406843400,1772224257063,-2330.6993,0.00045815,2]
[406843401,1772224257072,-510.76,0.00045899,120]
[406843402,1772224257081,-916.92,0.000459,30]
[406843403,1772224257090,-700.0,0.000459,16]
[406843404,1772224257099,-10143.95436211,0.000459,30]
[406843405,1772224257110,-1040.2,0.0004592,120]
[406843406,1772224257123,-285.18083939,0.0004593,3]
[406843407,1772224257133,-400.0,0.0004597,3]
[406843408,1772224257143,-50000.0,0.00046,70]
[406843409,1772224257153,-35900.0,0.00046,120]
[406843410,1772224257163,-53723.696792,0.00046,30]
[406843411,1772224257172,-1229.85,0.00046,120]
[406843412,1772224257182,-2341.13556394,0.00046,30]
[406843413,1772224257193,-500.0,0.00046,120]
[406843414,1772224257202,-180.0,0.00046,120]
[406843415,1772224257212,-600.0,0.00046,120]
[406843416,1772224257222,-300.0,0.00046,120]
[406843417,1772224257232,-620.75186631,0.00046,120]
[406843418,1772224257241,-400.0,0.0004607,3]
[406843419,1772224257251,-388.23136394,0.0004609,48]
[406843420,1772224257261,-155.13076873,0.00046107,120]
[406843421,1772224257270,-3578.42,0.00046138,120]
[406843422,1772224257279,-333.50737345,0.00046165,2]